Cogmind - Beta 11.1 @@@ ROGUE MODE // 2022.05.09 @ 17:34:44 Player: Zeldest Result: Destroyed by G-34 Mercenary with Small Laser Performance ------------- Evolutions (1) 500 Regions Visited (2) 400 Robots Destroyed (27) 135 Value Destroyed (462) 462 Prototype IDs (0) 0 Alien Tech Used (0) 0 Bonus (0) 0 TOTAL SCORE: 1497 Bonus ------- None Cogmind --------- Core Integrity 0/400 Matter 290/300 Energy 85/100 System Corruption 14% Temperature Cool (6) Movement Walking (330) Ox3 Location -9/Materials Parts ------- > --- POWER (2) -------- (None) > --- PROPULSION (2) --- Aluminum Leg > --- UTILITY (3) ------ High-capacity Storage Unit > --- WEAPON (2) ------- (None) > --- INVENTORY (20) --- Light Ion Engine Aluminum Leg Aluminum Leg Huge Storage Unit Mining Laser Peak State ------------ > --- POWER ------------ Light Ion Engine Improved Ion Engine > --- PROPULSION ------- Wheel Wheel > --- UTILITY ---------- High-capacity Storage Unit Weight Redist. System > --- WEAPON ----------- Hammer Mining Claw > --- INVENTORY -------- Huge Storage Unit Mining Laser [Rating: 10] Favorites ----------- Power Improved Ion Engine Engine Improved Ion Engine Propulsion Aluminum Leg Leg Aluminum Leg Wheel Wheel Flight Unit Flight Unit Utility Weight Redist. System Device Weight Redist. System Storage High-capacity Storage Unit Processor Transport Network Coupler Weapon Mining Claw Impact Weapon Hammer Slashing Weapon Mining Claw Build | -11 -10 -9 ------- Run | Scr Mat Mat Slots Evolved 2 | . . 2 Power 1 | . . 1 Propulsion . | . . . Utility 1 | . . 1 Weapon . | . . . Parts Attached 28 | 2 16 10 Power 8 | 1 4 3 Engine 8 | 1 4 3 Core . | . . . Reactor . | . . . Propulsion 11 | . 5 6 Treads . | . . . Leg 6 | . . 6 Wheel 3 | . 3 . Hover . | . . . Flight 2 | . 2 . Utility 6 | 1 4 1 Device 1 | . 1 . Storage 4 | 1 3 . Processor 1 | . . 1 Hackware . | . . . Protection . | . . . Artifact . | . . . Weapon 3 | . 3 . Energy Gun . | . . . Energy Cannon . | . . . Ballistic Gun . | . . . Ballistic Cannon . | . . . Launcher . | . . . Special Weapon . | . . . Impact Weapon 1 | . 1 . Slashing Weapon 2 | . 2 . Piercing Weapon . | . . . Special Melee Weapon . | . . . Unidentified Prototypes . | . . . Corrupted Parts 4 | . 2 2 System Corruption 22 | . 8 14 Parts Lost 13 | . 2 11 Power 5 | . 1 4 Propulsion 5 | . 1 4 Utility 1 | . . 1 Weapon 2 | . . 2 Highest Loss Streak 6 | . 1 6 To Critical Strikes . | . . . Average Slot Usage (%) 70 | . 62 80 Engine 16 | . 13 19 Leg 8 | . . 17 Wheel 4 | . 6 3 Device 10 | . 11 10 Storage 9 | . 7 11 Impact Weapon 9 | . 12 6 Slashing Weapon 9 | . 8 10 Naked Turns 1 | . 1 . Heaviest Build 54 | 3 51 54 Greatest Support 26 | 3 26 26 Greatest Overweight (x) 13 | . 5 13 Average Overweight (x) 1 | . 1 1 Largest Inventory Capacity 25 | 8 25 20 Average Capacity 16 | 5 13 20 Most Carried 7 | 2 5 7 Average Carried 3 | 1 3 4 Final Capacity 20 | 5 20 20 Final Carried 5 | 2 3 5 Class Distribution -------------------- 86% | Mutant 13% | Scavenger-Mutant Dominant Class ---------------- Mutant | -10/Materials Mutant | -9/Materials Resources | -11 -10 -9 ----------- Run | Scr Mat Mat Matter Collected 500 | 166 199 135 Remotely . | . . . Salvage Created 805 | . 278 527 Parts 33 | . 13 20 Haulers Intercepted 2 | . 1 1 Recyclers Shooed . | . . . Parts Field Recycled . | . . . Retrieved Matter . | . . . Parts Self-Destructed . | . . . Prevented . | . . . Kills | -11 -10 -9 ------- Run | Scr Mat Mat Combat Hostiles Destroyed 17 | . 8 9 Melee 12 | . 5 7 Classes Destroyed 7 | . 5 2 Worker 4 | . 2 2 Builder 2 | . 2 . Hauler 2 | . 1 1 Recycler 1 | . . 1 Watcher 1 | . 1 . Swarmer 8 | . 8 . Grunt 9 | . . 9 Best Kill Streak 3 | . 3 3 Combat Bots Only 3 | . 3 3 Max Kills in Single Turn 1 | . 1 1 Gunslinging . | . . . Exploded . | . . . Melee 1 | . 1 1 Uniques/NPCs Destroyed . | . . . Combat | -11 -10 -9 -------- Run | Scr Mat Mat Damage Taken 1447 | . 400 1047 Core 521 | . 111 410 Absorbed by Shields . | . . . Core Remaining (%) 77 | 100 55 . Volleys Fired . | . . . Largest . | . . . Hottest . | . . . Shots Fired . | . . . Gun . | . . . Cannon . | . . . Launcher . | . . . Special . | . . . Kinetic . | . . . Thermal . | . . . Explosive . | . . . Electromagnetic . | . . . Robot Hit Streak . | . . . Robot Miss Streak . | . . . Penetration Max . | . . . Secondary Targets . | . . . Shots Hit Robots 56 | . 31 25 Core Hits 14 | . 5 9 Critical Kills 2 | . 2 . Critical Parts Destroyed 7 | . 3 4 Critical Strikes 9 | . 5 4 Smash 9 | . 5 4 Melee Attacks 83 | . 46 37 Impact 59 | . 44 15 Slashing 24 | . 2 22 Piercing . | . . . Sneak Attacks 11 | . 7 4 Combat Hostiles . | . . . Follow-up Attacks 4 | . 2 2 Damage Inflicted 1443 | . 845 598 Guns . | . . . Cannons . | . . . Explosions . | . . . Melee 1443 | . 845 598 Ramming . | . . . Kinetic . | . . . Thermal . | . . . Explosive . | . . . Electromagnetic . | . . . Impact 1042 | . 772 270 Slashing 401 | . 73 328 Piercing . | . . . Highest Corruption 14 | . 8 14 Average Corruption 13 | . 7 13 Corruption Purged . | . . . Corruption Blocked . | . . . Effects 23 | . 1 22 Message Errors 3 | . . 3 Matter Fused 7 | . 1 6 Heat Flow Errors 4 | . . 4 Energy Discharges 4 | . . 4 Parts Rejected 1 | . . 1 Data Loss (major) 1 | . . 1 Alerts 1 | . . 1 Misdirections 2 | . . 2 Overload Shots . | . . . Overflow Damage 293 | . 173 120 Projectiles . | . . . Explosions . | . . . Melee 293 | . 173 120 Knockbacks 2 | . 1 1 Impact 2 | . 1 1 Kinetic . | . . . Secondary . | . . . Self-Inflicted Damage . | . . . Shots . | . . . Rammed . | . . . Targets Rammed . | . . . Kicked . | . . . Crushed . | . . . Highest Temperature 169 | . . 169 Average Temperature 65 | . . 65 Received Heat Transfer 513 | . . 513 Siege Activations . | . . . Robots Corrupted . | . . . Combat Hostiles . | . . . Parts Fried 14 | . 13 1 Impact Corruptions 18 | . 13 5 Robots Melted . | . . . Combat Hostiles . | . . . Parts Melted . | . . . Heat Transferred . | . . . Parts Sabotaged . | . . . Parts Stolen . | . . . Parts Stripped . | . . . Power Chain Reactions . | . . . Missiles Intercepted . | . . . Alert | -11 -10 -9 ------- Run | Scr Mat Mat Peak Influence 192 | . 192 137 Initial . | . . . Average 59 | . 57 63 Maximum Alert Level . | . . . Low Security (%) 100 | 100 100 100 Level 1 . | . . . Level 2 . | . . . Level 3 . | . . . Level 4 . | . . . Level 5 . | . . . High Security . | . . . Max Security . | . . . Squads Dispatched 1 | . . 1 Investigation . | . . . Extermination . | . . . Reinforcement 1 | . . 1 Assault . | . . . Garrison . | . . . Intercept . | . . . Searches Triggered . | . . . Construction Impeded . | . . . Haulers Reinforced . | . . . Active Scanning Responses . | . . . Cargo Convoy Interrupts . | . . . Stealth | -11 -10 -9 --------- Run | Scr Mat Mat Distress Signals 4 | . 1 3 Communications Jammed . | . . . Distress Signals . | . . . Times Spotted 37 | . 16 21 Peak Tracking Total 9 | . 5 9 Tactical Retreats 2 | . 2 . Traps | -11 -10 -9 ------- Run | Scr Mat Mat Traps Triggered . | . . . Indirectly . | . . . Trap Hack Attempts . | . . . Triggered . | . . . Disarmed . | . . . Reprogrammed . | . . . Reused . | . . . Traps Extracted . | . . . Installed . | . . . Triggered . | . . . Machines | -11 -10 -9 ---------- Run | Scr Mat Mat Machines Disabled 1 | . . 1 Max in Single Turn 1 | . . 1 Machines Sabotaged . | . . . Garrisons Compromised . | . . . Overloaded Fab Kills . | . . . Hacking | -11 -10 -9 --------- Run | Scr Mat Mat Machines Accessed 2 | . 2 . Terminals 2 | . 2 . Fabricators . | . . . Repair Stations . | . . . Recycling Units . | . . . Scanalyzers . | . . . Garrison Access . | . . . Total Hacks 2 | . 2 . Successful 2 | . 2 . Failed . | . . . Catastrophic . | . . . Database Lockouts . | . . . Manual 1 | . 1 . Terminals 2 | . 2 . Fabricators . | . . . Repair Stations . | . . . Recycling Units . | . . . Scanalyzers . | . . . Garrison Access . | . . . Terminal Hacks 2 | . 2 . Unreport Threat 1 | . 1 . Locate Traps 1 | . 1 . Fabricator Hacks . | . . . Repair Station Hacks . | . . . Recycling Unit Hacks . | . . . Scanalyzer . | . . . Garrison Access Hacks . | . . . Unauthorized Hacks . | . . . Terminals . | . . . Fabricators . | . . . Repair Stations . | . . . Recycling Units . | . . . Scanalyzers . | . . . Garrison Access . | . . . Data Cores Recovered . | . . . Used . | . . . Hacking Detections 1 | . 1 . Full Trace Events . | . . . Feedback Events . | . . . Feedback Blocked . | . . . Robot Schematics Acquired . | . . . Robots Built . | . . . Authchips . | . . . Time . | . . . Total Robot Build Rating . | . . . Part Schematics Acquired . | . . . Parts Built . | . . . Authchips . | . . . Time . | . . . Total Part Build Rating . | . . . Parts Repaired . | . . . Time . | . . . Parts Recycled . | . . . Recycled Matter . | . . . Retrieved Matter . | . . . Retrieved Components . | . . . Parts Scanalyzed . | . . . Part Schematics Acquired . | . . . Parts Damaged . | . . . Bothacking | -11 -10 -9 ------------ Run | Scr Mat Mat Used RIF Installer . | . . . Robots Hacked . | . . . Non-combat . | . . . Combat . | . . . Robot Hacks Applied . | . . . Relay Couplers Released . | . . . Fabnet Peak Effective % . | . . . Robots Rewired . | . . . Allies Hacked . | . . . Hacks Repelled . | . . . Allies | -11 -10 -9 -------- Run | Scr Mat Mat Total Allies . | . . . Largest Group . | . . . Highest-Rated Group . | . . . Highest-Rated Ally . | . . . Total Orders . | . . . Ally Attacks . | . . . Total Damage . | . . . Kills . | . . . Allies Corrupted . | . . . Allies Melted . | . . . Intel | -11 -10 -9 ------- Run | Scr Mat Mat Robot Analysis Total . | . . . Derelict Logs Recovered . | . . . Drone Launches . | . . . Drone Recoveries . | . . . Exploration | -11 -10 -9 ------------- Run | Scr Mat Mat Turns Passed 1429 | 27 718 684 Spaces Moved 882 | 37 584 261 Core 329 | 37 286 6 Treads . | . . . Legs 201 | . . 201 Wheels 271 | . 217 54 Hover . | . . . Flight 81 | . 81 . Fastest Speed 37 | 50 37 110 Average Speed 123 | 50 90 207 Slowest Speed 700 | 50 300 700 Overloaded Moves . | . . . Propulsion Burnouts . | . . . Robots Hopped . | . . . Cave-ins Triggered . | . . . Exploration Rate (%) 38 | 3 77 35 Regions Visited 2 Branch Regions . Pre-discovered Areas . | . . . Known Exits Taken . | . . . Unknown Exits Taken 2 | 1 1 . Scrap Searched . | . . . Spaces Dug 1 | . . 1 Terrain Destroyed 1 | . . 1 Melee 1 | . . 1 Projectile . | . . . AOE . | . . . Terrain Rammed . | . . . Walls Destroyed . | . . . Machines Disabled . | . . . Actions | -11 -10 -9 --------- Run | Scr Mat Mat Total 1084 | 45 702 337 Wait 57 | 3 30 24 Move 880 | 36 583 261 Hop . | . . . Pick Up 29 | 3 17 9 Fast Attach . | . . . Attach 24 | 2 14 8 Detach 5 | 1 4 . Swap 4 | . 2 2 Drop 8 | . 8 . Fire . | . . . Melee 77 | . 44 33 Ram . | . . . Kick . | . . . Crush . | . . . Escape Stasis . | . . . Rewire . | . . . Trap . | . . . Miscellaneous . | . . . Route ------- -11/Scrapyard -10/Materials (discovered 3 exits: [*Mat x2] / [*Min]) -9/Materials (discovered 1 exit: [*Mat]) History --------- Turn | Location | Event 14 | -11/Scrapyard | Discovered new exit (range 15) 28 | -11/Scrapyard | Entered Materials 84 | -10/Materials | Discovered new exit (range 3) 301 | -10/Materials | Build established: Mutant 303 | -10/Materials | Discovered new exit (range 11) 731 | -10/Materials | Discovered new exit (range 14) 746 | -10/Materials | Entered another Materials area 746 | -9/Materials | Evolved 2 slots: Power x1, Utility x1 872 | -9/Materials | System corruption reached 10% 1212 | -9/Materials | Lost 3 parts (2p1w) 1419 | -9/Materials | Core integrity fell below 50% 1422 | -9/Materials | Discovered new exit (range 10) 1427 | -9/Materials | Core integrity fell below 20% 1430 | -9/Materials | Destroyed by G-34 Mercenary with Small Laser Last Messages --------------- 01367_ Acquired Transport Network Coupler. 01371_ Acquired 27 matter. 01383_ System corrupted: Energy discharge (-107). 01386_ O-16 Technician: "IFF HANDSHAKE FAILED. SECURING TERMINAL." 01391_ ALERT: Hostiles spotted, dispatching reinforcements to Terminal M006. 01392_ W-16 Scout sends out distress signal. 01398_ System corrupted: Energy discharge (-101). 01406_ W-16 Scout sends out distress signal. 01406_ Lgt. Ion Engine destroyed. 01409_ Weight Redist. System destroyed. 01413_ System corrupted: Energy discharge (-82). 01414_ Ion Engine destroyed. 01418_ U-05 Engineer builds a Door. 01418_ Aluminum Leg destroyed. 01421_ Mining Claw destroyed. 01421_ Aluminum Leg destroyed. 01422_ EXIT=FOUND 01429_ ,EU|AHGVR H954|KOWI6UO29HLSSZD 01429_ Transport Network Coupler severed. Map ----- +----------------------------------------------------+ | | | | | | | | | | | ?????????????????????????????????????????????????? | | ?????????????????????????????????????????????????? | | ?????????????????????????????????????????????????? | | ?????????????????????????????????????????????????? | | ?????????????????????????????????????????????????? | | ?????????????????????????????????????????????????? | | ?????????????????????????????????????????????????? | | ?????????????????????????????????????????????????? | | ?????????????????????????????????????????????????? | | ?????????????????????????####????????????????????? | | ????????????????????????? #????????????????????? | | ???????###########??????? < #????????????????????? | | #+###### """ #??????# #????????????????????? | | + "T" #??????+ #????????????????????? | | ^^^#???# " " =]#??????# #????????????????????? | | ^^ #???# ! #??????# #????????????????????? | | #???# #??????# #????????????????????? | | #???? #??????# #????????????????????? | | #?????? #??????# #????????????????????? | | =[##??????? ???????# g #????????????????????? | | [%[##########+##########@ #????????????????????? | | [[[ l # """???????????????? | | + """"???????????????? | | Yg # """"???????????????? | | ###+################# #?""""???????????????? | | ## !??????????????# #??""????????????????? | | ## #????????????# #???#????????????????? | | ## #????????????+ #????????????????????? | | ## """ #????????????# g#????????????????????? | | ## """ #?????????????o #????????????????????? | | ## """ #????????????? #????????????????????? | | #########????????????? u ????????????????????? | | ??????????????????? ????????????????????? | | ?????????????????? #???????????????????? | | ?????????????????? #???????????????????? | | ?????????????????? ????????????????????? | | ??????????????????????????????????????????? | | ??????????????????????????????????????????? | | #?????????????????????????????????????????????? | | #/#####??????????????????????????????????????????? | | #??????????????????????????????????????????? | | """#??????????????????????????????????????????? | | """#??????????????????????????????????????????? | | """#??????????????????????????????????????????? | | """#??????????????????????????????????????????? | +----------------------------------------------------+ Best States ------------- Heat Dissipation 28 Energy Generation 17 Energy Capacity 290 Matter Stores 300 Matter Capacity 300 Sight Range 16 Terrain Scan Density 10 Additional Mass Support 6 Evasion (%) 62 Item Schematics ----------------- None Robot Schematics ------------------ None Fabricated ------------ Nothing Alien Tech Used ----------------- None Achievements -------------- None Challenges ------------ None Game ------ Seed ReflectiveCarbideTorch Manual? 0 Play Time 00:17:25 Cumulative 23.9 hours Start 2022.05.09 @ 17:21:30 End 2022.05.09 @ 17:34:44 Sessions 1 Manual Loads 0 Difficulty Rogue Special Mode None Game No. 55 Rogue 55 Adventurer 0 Explorer 0 Win Type - Total 0 Types 0/0/0/0/0/0/0/0/0 Lore% 22 Gallery% 26 Achievement% 20 Wizard Run 0 Options --------- ASCII 0 Keyboard 1 Movement Numpad Keybinds 0 Fullscreen 1 Font 18/SmallcapsGlow Map View 76x50 Tactical HUD 1 Map Filters NONE Filters NONE Steam 1 RUN: 1d8e39d9-46d1-4678-8dae-00a9b08fdd86